[Event "44th Chess Olympiad Open 2022"]
[Site "Chennai"]
[Date "2022.08.02"]
[Round "5.63"]
[White "Hussain, Hashem"]
[Black "Rocha, Maximiliano"]
[Result "1/2-1/2"]
[WhiteElo "1757"]
[BlackElo "2117"]
[Annotator "NA RC"]
[PlyCount "109"]
[EventDate "2022.??.??"]
[TimeControl "60"]

1. e4 {[%emt 0:00:05]} e5 {[%emt 0:00:10]} 2. Nf3 {[%emt 0:00:15]} Nc6 {
[%emt 0:00:10]} 3. Bb5 {[%emt 0:00:16]} a6 {[%emt 0:00:33]} 4. Ba4 {[%emt 0:00:
00]} Nf6 {[%emt 0:00:08]} 5. d3 {[%emt 0:00:12]} b5 {[%emt 0:01:25]} 6. Bb3 {
[%emt 0:04:01]} Bc5 {[%emt 0:00:10]} 7. c3 {[%emt 0:00:57]} d6 {[%emt 0:00:06]}
8. Nbd2 {[%emt 0:00:51]} Bb6 {[%emt 0:01:24]} 9. h3 {[%emt 0:01:34]} Ne7 {
[%emt 0:01:35]} 10. O-O {[%emt 0:01:32]} Ng6 {[%emt 0:01:52]} 11. d4 {[%emt 0:
00:00]} O-O {[%emt 0:00:16]} 12. Re1 {[%emt 0:04:16]} c5 {[%emt 0:00:10]} 13.
Nf1 {[%emt 0:05:16]} h6 {[%emt 0:00:10]} 14. Ng3 {[%emt 0:03:45]} Rb8 {[%emt 0:
00:00]} 15. a3 {[%emt 0:06:52]} Be6 {[%emt 0:05:12]} 16. Bxe6 {[%emt 0:05:09]}
fxe6 {[%emt 0:00:07]} 17. dxe5 {[%emt 0:00:10]} dxe5 {[%emt 0:00:07]} 18. Qxd8
{[%emt 0:00:38]} Rbxd8 {[%emt 0:00:23]} 19. Be3 {[%emt 0:00:23]} Nd7 {[%emt 0:
00:00]} 20. Red1 {[%emt 0:02:58]} Bc7 {[%emt 0:34:19]} 21. a4 {[%emt 0:05:42]}
b4 {[%emt 0:11:42]} 22. cxb4 {[%emt 0:01:59]} cxb4 {[%emt 0:00:05]} 23. Rac1 {
[%emt 0:01:33]} Nb6 {[%emt 0:00:17]} 24. b3 {[%emt 0:03:38]} Rxd1+ {[%emt 0:00:
00]} 25. Rxd1 {[%emt 0:00:12]} Rf7 {[%emt 0:00:02]} 26. Bxb6 {[%emt 0:02:44]}
Bxb6 {[%emt 0:00:14]} 27. Rd6 {[%emt 0:00:09]} Bd4 {[%emt 0:02:39]} 28. Nxd4 {
[%emt 0:06:13]} exd4 {[%emt 0:00:06]} 29. Rxd4 {[%emt 0:00:12]} a5 {[%emt 0:00:
00]} 30. Rd6 {[%emt 0:00:52]} Nf4 {[%emt 0:00:08]} 31. Ra6 {[%emt 0:02:19]} Rc7
{[%emt 0:00:11]} 32. Rxa5 {[%emt 0:05:55]} Rc3 {[%emt 0:00:09]} 33. Rb5 {
[%emt 0:01:53]} Rxb3 {[%emt 0:00:08]} 34. a5 {[%emt 0:00:51]} Rb1+ {[%emt 0:00:
00]} 35. Kh2 {[%emt 0:00:49]} Nd3 {[%emt 0:00:50]} 36. f3 {[%emt 0:09:51]} b3 {
[%emt 0:00:14]} 37. a6 {[%emt 0:00:58]} b2 {[%emt 0:00:29]} 38. Ne2 {[%emt 0:
00:00]} Ra1 {[%emt 0:00:06]} 39. Nc3 {[%emt 0:01:58]} Rxa6 {[%emt 0:00:10]} 40.
Rb8+ {[%emt 0:06:34]} Kh7 {[%emt 0:01:25]} 41. Rd8 {[%emt 0:30:23]} Rc6 {
[%emt 0:30:34]} 42. Nb1 {[%emt 0:08:12]} Rc1 {[%emt 0:05:25]} 43. Rxd3 {
[%emt 0:00:21]} Rxb1 {[%emt 0:00:04]} 44. Rb3 {[%emt 0:00:12]} Kg6 {[%emt 0:00:
00]} 45. Kg3 {[%emt 0:01:11]} e5 {[%emt 0:00:06]} 46. Rb5 {[%emt 0:00:57]} Kf6
{[%emt 0:00:50]} 47. Kg4 {[%emt 0:00:39]} g6 {[%emt 0:00:11]} 48. h4 {[%emt 0:
00:00]} h5+ {[%emt 0:00:36]} 49. Kg3 {[%emt 0:00:50]} Ke6 {[%emt 0:00:06]} 50.
Kh2 {[%emt 0:02:19]} Kd6 {[%emt 0:00:05]} 51. g3 {[%emt 0:00:00]} Kc6 {[%emt 0:
00:00]} 52. Rb8 {[%emt 0:00:00]} Kc5 {[%emt 0:00:00]} 53. Kg2 {[%emt 0:00:00]}
Kc4 {[%emt 0:00:00]} 54. Rc8+ {[%emt 0:00:00]} Kd3 {[%emt 0:00:00]} 55. Rd8+ {
[%emt 0:00:00]} 1/2-1/2

[Event "44th Chess Olympiad Open 2022"]
[Site "Chennai"]
[Date "2022.08.02"]
[Round "5.64"]
[White "Ortega Amarelle, Mariano"]
[Black "Martyr, Reginald"]
[Result "1-0"]
[WhiteElo "2463"]
[BlackElo "2194"]
[Annotator "RC"]
[PlyCount "73"]
[EventDate "2022.??.??"]
[TimeControl "60"]

1. d4 {[%emt 0:00:06]} f5 {[%emt 0:00:18]} 2. Nf3 {[%emt 0:00:20]} Nf6 {
[%emt 0:00:42]} 3. Bg5 {[%emt 0:00:08]} e6 {[%emt 0:00:43]} 4. Nbd2 {[%emt 0:
00:00]} Be7 {[%emt 0:01:07]} 5. e3 {[%emt 0:02:00]} Nc6 {[%emt 0:11:13]} 6. c3
{[%emt 0:17:45]} Ne4 {[%emt 0:14:04]} 7. Bxe7 {[%emt 0:04:10]} Qxe7 {[%emt 0:
00:00]} 8. Bb5 {[%emt 0:14:39]} O-O {[%emt 0:16:38]} 9. Qb3 {[%emt 0:24:21]} d6
{[%emt 0:12:10]} 10. Nxe4 {[%emt 0:11:32]} fxe4 {[%emt 0:00:10]} 11. Nd2 {
[%emt 0:00:04]} d5 {[%emt 0:15:54]} 12. O-O {[%emt 0:01:06]} Bd7 {[%emt 0:00:
00]} 13. Bxc6 {[%emt 0:12:27]} Bxc6 {[%emt 0:00:29]} 14. f3 {[%emt 0:00:08]}
Rae8 {[%emt 0:06:22]} 15. fxe4 {[%emt 0:04:02]} dxe4 {[%emt 0:00:41]} 16. Rxf8+
{[%emt 0:00:12]} Rxf8 {[%emt 0:00:14]} 17. Rf1 {[%emt 0:00:16]} Rxf1+ {[%emt 0:
00:00]} 18. Nxf1 {[%emt 0:00:29]} Qf7 {[%emt 0:06:23]} 19. c4 {[%emt 0:00:38]}
Qf5 {[%emt 0:02:02]} 20. Qa3 {[%emt 0:00:34]} a6 {[%emt 0:04:17]} 21. Qe7 {
[%emt 0:00:12]} Qf7 {[%emt 0:00:05]} 22. Qd8+ {[%emt 0:00:09]} Be8 {[%emt 0:00:
00]} 23. Ng3 {[%emt 0:00:23]} h6 {[%emt 0:00:37]} 24. Qa8 {[%emt 0:02:27]} Qd7
{[%emt 0:02:18]} 25. Qxb7 {[%emt 0:00:16]} Qc6 {[%emt 0:00:59]} 26. Qxc6 {
[%emt 0:00:26]} Bxc6 {[%emt 0:00:02]} 27. Ne2 {[%emt 0:00:36]} Kf7 {[%emt 0:00:
00]} 28. Kf2 {[%emt 0:00:12]} Kf6 {[%emt 0:00:19]} 29. Nc3 {[%emt 0:01:04]} Kf5
{[%emt 0:00:09]} 30. b4 {[%emt 0:00:14]} g5 {[%emt 0:00:34]} 31. a4 {[%emt 0:
00:00]} Be8 {[%emt 0:01:35]} 32. a5 {[%emt 0:00:47]} Bc6 {[%emt 0:00:08]} 33.
h3 {[%emt 0:01:02]} h5 {[%emt 0:00:08]} 34. g3 {[%emt 0:00:11]} e5 {[%emt 0:00:
00]} 35. d5 {[%emt 0:00:09]} Bd7 {[%emt 0:01:12]} 36. b5 {[%emt 0:01:10]} Bc8 {
[%emt 0:00:07]} 37. b6 {[%emt 0:00:46]} 1-0

[Event "44th Chess Olympiad Open 2022"]
[Site "Chennai"]
[Date "2022.08.02"]
[Round "5.64"]
[White "Mirulla, David"]
[Black "Mathurin, Nathaniel"]
[Result "0-1"]
[WhiteElo "1953"]
[BlackElo "1722"]
[Annotator "NA RC"]
[PlyCount "90"]
[EventDate "2022.??.??"]
[TimeControl "60"]

1. e4 {[%emt 0:00:04]} c5 {[%emt 0:00:31]} 2. Nf3 {[%emt 0:00:11]} d6 {[%emt 0:
00:00]} 3. d4 {[%emt 0:00:09]} Nf6 {[%emt 0:00:48]} 4. dxc5 {[%emt 0:02:40]}
Nxe4 {[%emt 0:00:18]} 5. cxd6 {[%emt 0:02:26]} Nc6 {[%emt 0:04:36]} 6. Bd3 {
[%emt 0:07:53]} Nxd6 {[%emt 0:01:15]} 7. h3 {[%emt 0:05:10]} g6 {[%emt 0:02:24]
} 8. O-O {[%emt 0:02:50]} Bg7 {[%emt 0:00:01]} 9. Re1 {[%emt 0:13:04]} O-O {
[%emt 0:02:04]} 10. c3 {[%emt 0:05:31]} Qb6 {[%emt 0:11:35]} 11. Qb3 {[%emt 0:
00:00]} Be6 {[%emt 0:03:13]} 12. Qxb6 {[%emt 0:05:37]} axb6 {[%emt 0:00:02]}
13. Be3 {[%emt 0:05:51]} Bxa2 {[%emt 0:00:59]} 14. Bxb6 {[%emt 0:04:33]} Bc4 {
[%emt 0:00:28]} 15. Rxa8 {[%emt 0:06:31]} Rxa8 {[%emt 0:00:02]} 16. Bc2 {
[%emt 0:01:34]} Ra2 {[%emt 0:01:07]} 17. b3 {[%emt 0:22:58]} Rxc2 {[%emt 0:00:
00]} 18. bxc4 {[%emt 0:00:07]} Nxc4 {[%emt 0:00:04]} 19. Bc5 {[%emt 0:00:27]}
Bf6 {[%emt 0:03:31]} 20. Kf1 {[%emt 0:03:23]} b6 {[%emt 0:05:24]} 21. Be3 {
[%emt 0:01:53]} b5 {[%emt 0:00:17]} 22. Re2 {[%emt 0:00:28]} Rxe2 {[%emt 0:00:
00]} 23. Kxe2 {[%emt 0:00:03]} Kf8 {[%emt 0:00:20]} 24. Nfd2 {[%emt 0:01:11]}
Nd6 {[%emt 0:02:38]} 25. Bc5 {[%emt 0:00:36]} Nb7 {[%emt 0:03:12]} 26. Ba3 {
[%emt 0:00:53]} Ke8 {[%emt 0:00:55]} 27. Kd3 {[%emt 0:00:19]} Be5 {[%emt 0:00:
00]} 28. Nf3 {[%emt 0:00:45]} f6 {[%emt 0:03:34]} 29. Nbd2 {[%emt 0:01:14]} Bc7
{[%emt 0:01:00]} 30. c4 {[%emt 0:01:46]} b4 {[%emt 0:00:18]} 31. Bb2 {[%emt 0:
00:00]} Nc5+ {[%emt 0:00:58]} 32. Kc2 {[%emt 0:00:40]} e5 {[%emt 0:02:02]} 33.
Ne1 {[%emt 0:00:14]} Na5 {[%emt 0:01:33]} 34. f3 {[%emt 0:01:29]} Kd7 {[%emt 0:
00:00]} 35. Ne4 {[%emt 0:00:23]} Nxe4 {[%emt 0:00:15]} 36. fxe4 {[%emt 0:00:01]
} Nxc4 {[%emt 0:01:03]} 37. Bc1 {[%emt 0:01:28]} Kc6 {[%emt 0:00:29]} 38. Kb3 {
[%emt 0:00:52]} Kb5 {[%emt 0:00:02]} 39. Bh6 {[%emt 0:00:16]} Bd6 {[%emt 0:00:
00]} 40. Nd3 {[%emt 0:00:44]} Na5+ {[%emt 0:03:53]} 41. Kc2 {[%emt 0:02:06]}
Kc4 {[%emt 0:01:23]} 42. Be3 {[%emt 0:02:14]} b3+ {[%emt 0:00:07]} 43. Kd2 {
[%emt 0:00:15]} Bb4+ {[%emt 0:00:24]} 44. Ke2 {[%emt 0:00:23]} Ba3 {[%emt 0:00:
00]} 45. Kd2 {[%emt 0:02:50]} b2 {[%emt 0:00:09]} 0-1

[Event "44th Chess Olympiad Open 2022"]
[Site "Chennai"]
[Date "2022.08.02"]
[Round "5.64"]
[White "Sixtus Gabriel"]
[Black "Teixeira, Gil"]
[Result "0-1"]
[WhiteElo "1787"]
[BlackElo "1741"]
[Annotator "NA RC"]
[PlyCount "155"]
[EventDate "2022.??.??"]
[TimeControl "60"]

1. e4 {[%emt 0:00:09]} d5 {[%emt 0:01:25]} 2. exd5 {[%emt 0:00:27]} Qxd5 {
[%emt 0:00:22]} 3. Nc3 {[%emt 0:00:51]} Qa5 {[%emt 0:02:13]} 4. Nf3 {[%emt 0:
00:00]} Bf5 {[%emt 0:00:28]} 5. Bc4 {[%emt 0:01:01]} e6 {[%emt 0:01:05]} 6. Qe2
{[%emt 0:00:45]} Be7 {[%emt 0:00:35]} 7. O-O {[%emt 0:00:48]} Nf6 {[%emt 0:00:
00]} 8. d4 {[%emt 0:04:38]} c6 {[%emt 0:00:23]} 9. Bf4 {[%emt 0:01:17]} Nbd7 {
[%emt 0:00:27]} 10. Rfe1 {[%emt 0:00:44]} O-O {[%emt 0:00:12]} 11. h3 {[%emt 0:
00:00]} Bb4 {[%emt 0:02:19]} 12. Bd2 {[%emt 0:07:06]} Rfe8 {[%emt 0:01:52]} 13.
a3 {[%emt 0:01:29]} Bf8 {[%emt 0:03:09]} 14. Bb3 {[%emt 0:02:28]} Qc7 {[%emt 0:
00:00]} 15. Nh4 {[%emt 0:00:36]} Bg6 {[%emt 0:00:48]} 16. Nxg6 {[%emt 0:00:11]}
hxg6 {[%emt 0:01:05]} 17. Ne4 {[%emt 0:01:42]} Nxe4 {[%emt 0:01:20]} 18. Qxe4 {
[%emt 0:00:32]} Nf6 {[%emt 0:00:19]} 19. Qf3 {[%emt 0:02:46]} Rad8 {[%emt 0:00:
00]} 20. Bc3 {[%emt 0:07:46]} Nd5 {[%emt 0:01:24]} 21. Bd2 {[%emt 0:00:56]} Be7
{[%emt 0:00:26]} 22. c4 {[%emt 0:00:52]} Nf6 {[%emt 0:00:29]} 23. Bc3 {[%emt 0:
00:00]} b5 {[%emt 0:00:17]} 24. Re2 {[%emt 0:03:09]} bxc4 {[%emt 0:00:15]} 25.
Bxc4 {[%emt 0:00:24]} Nd5 {[%emt 0:05:09]} 26. Rae1 {[%emt 0:01:52]} Bf6 {
[%emt 0:00:31]} 27. Qg4 {[%emt 0:00:51]} Qf4 {[%emt 0:03:22]} 28. g3 {[%emt 0:
00:00]} Qxg4 {[%emt 0:01:04]} 29. hxg4 {[%emt 0:00:16]} Nb6 {[%emt 0:00:36]}
30. Ba6 {[%emt 0:01:39]} Bxd4 {[%emt 0:01:10]} 31. Bxd4 {[%emt 0:00:21]} Rxd4 {
[%emt 0:00:11]} 32. Rc1 {[%emt 0:00:22]} Red8 {[%emt 0:03:55]} 33. Rxc6 {
[%emt 0:00:27]} Rxg4 {[%emt 0:00:34]} 34. Rc7 {[%emt 0:00:28]} Rd1+ {[%emt 0:
00:00]} 35. Kh2 {[%emt 0:00:50]} Rd7 {[%emt 0:01:31]} 36. Rec2 {[%emt 0:01:44]}
Rgd4 {[%emt 0:00:19]} 37. Kg2 {[%emt 0:02:58]} g5 {[%emt 0:00:44]} 38. Bb5 {
[%emt 0:00:53]} Rxc7 {[%emt 0:07:10]} 39. Rxc7 {[%emt 0:00:34]} a5 {[%emt 0:00:
00]} 40. Rb7 {[%emt 0:07:29]} Nc4 {[%emt 0:00:39]} 41. Be8 {[%emt 0:30:32]} Nd6
{[%emt 0:32:14]} 42. Rb8 {[%emt 0:03:25]} Kh7 {[%emt 0:01:10]} 43. Bb5 {
[%emt 0:02:51]} Kg6 {[%emt 0:00:42]} 44. Kf3 {[%emt 0:00:25]} f5 {[%emt 0:00:
00]} 45. Ke3 {[%emt 0:01:14]} Re4+ {[%emt 0:05:26]} 46. Kd2 {[%emt 0:01:19]}
Re5 {[%emt 0:00:35]} 47. Bd3 {[%emt 0:01:12]} Kf6 {[%emt 0:01:27]} 48. b4 {
[%emt 0:00:37]} axb4 {[%emt 0:00:34]} 49. axb4 {[%emt 0:00:15]} Rd5 {[%emt 0:
00:00]} 50. Kc3 {[%emt 0:02:50]} Ke5 {[%emt 0:00:30]} 51. b5 {[%emt 0:00:23]}
Rc5+ {[%emt 0:02:43]} 52. Kb4 {[%emt 0:01:21]} Rd5 {[%emt 0:00:49]} 53. Kc3 {
[%emt 0:02:30]} Ne4+ {[%emt 0:01:00]} 54. Bxe4 {[%emt 0:01:03]} Kxe4 {[%emt 0:
00:00]} 55. Kc4 {[%emt 0:00:12]} Rd2 {[%emt 0:00:25]} 56. Kc3 {[%emt 0:02:36]}
Rd1 {[%emt 0:00:18]} 57. Ra8 {[%emt 0:00:29]} Rb1 {[%emt 0:00:14]} 58. Kc4 {
[%emt 0:00:24]} Rc1+ {[%emt 0:02:42]} 59. Kb4 {[%emt 0:00:01]} Kd5 {[%emt 0:00:
00]} 60. Rd8+ {[%emt 0:00:26]} Ke4 {[%emt 0:00:26]} 61. Rd2 {[%emt 0:00:39]}
Rb1+ {[%emt 0:00:48]} 62. Kc5 {[%emt 0:00:23]} e5 {[%emt 0:00:17]} 63. Rc2 {
[%emt 0:01:00]} Kf3 {[%emt 0:01:15]} 64. b6 {[%emt 0:00:56]} e4 {[%emt 0:00:07]
} 65. Kc6 {[%emt 0:00:56]} f4 {[%emt 0:00:04]} 66. Rc5 {[%emt 0:00:35]} Kxf2 {
[%emt 0:00:21]} 67. Rb5 {[%emt 0:00:26]} Rxb5 {[%emt 0:01:00]} 68. Kxb5 {
[%emt 0:00:08]} e3 {[%emt 0:00:10]} 69. b7 {[%emt 0:00:10]} e2 {[%emt 0:00:36]}
70. b8=Q {[%emt 0:00:14]} e1=Q {[%emt 0:01:04]} 71. Qa7+ {[%emt 0:04:54]} Kxg3
{[%emt 0:00:12]} 72. Qxg7 {[%emt 0:00:28]} g4 {[%emt 0:00:37]} 73. Qc7 {
[%emt 0:00:18]} Qe2+ {[%emt 0:01:05]} 74. Kb4 {[%emt 0:00:09]} Qe4+ {[%emt 0:
00:00]} 75. Kc3 {[%emt 0:00:20]} Kg2 {[%emt 0:01:28]} 76. Kd2 {[%emt 0:02:39]}
f3 {[%emt 0:00:28]} 77. Qd6 {[%emt 0:00:56]} f2 {[%emt 0:00:27]} 78. Qh6 {
[%emt 0:00:53]} 0-1

[Event "44th Chess Olympiad Open 2022"]
[Site "Chennai"]
[Date "2022.08.02"]
[Round "5.64"]
[White "Nicholas Arvin"]
[Black "Rodriguez Guevara, Celia M."]
[Result "1-0"]
[WhiteElo "1744"]
[BlackElo "1859"]
[Annotator "NA RC"]
[PlyCount "119"]
[EventDate "2022.??.??"]
[TimeControl "60"]

1. d4 {[%emt 0:01:20]} d5 {[%emt 0:03:50]} 2. c4 {[%emt 0:00:06]} c6 {[%emt 0:
00:00]} 3. Nc3 {[%emt 0:00:23]} Nf6 {[%emt 0:01:14]} 4. cxd5 {[%emt 0:02:19]}
cxd5 {[%emt 0:00:35]} 5. Bg5 {[%emt 0:02:49]} e6 {[%emt 0:01:02]} 6. e3 {
[%emt 0:00:20]} Be7 {[%emt 0:00:56]} 7. Bd3 {[%emt 0:00:58]} Nc6 {[%emt 0:00:
00]} 8. Nge2 {[%emt 0:03:32]} a5 {[%emt 0:02:56]} 9. O-O {[%emt 0:08:03]} h6 {
[%emt 0:04:35]} 10. Bh4 {[%emt 0:00:38]} O-O {[%emt 0:00:18]} 11. Rc1 {[%emt 0:
00:00]} Bd7 {[%emt 0:06:09]} 12. a3 {[%emt 0:01:45]} Na7 {[%emt 0:06:18]} 13.
f3 {[%emt 0:12:15]} b5 {[%emt 0:03:31]} 14. Bf2 {[%emt 0:16:20]} Rb8 {[%emt 0:
00:00]} 15. Ng3 {[%emt 0:02:27]} b4 {[%emt 0:18:48]} 16. axb4 {[%emt 0:03:37]}
axb4 {[%emt 0:06:29]} 17. Na4 {[%emt 0:01:53]} Bb5 {[%emt 0:01:32]} 18. Nc5 {
[%emt 0:11:30]} Nd7 {[%emt 0:02:03]} 19. Nb3 {[%emt 0:01:50]} Qb6 {[%emt 0:00:
00]} 20. e4 {[%emt 0:08:41]} Bg5 {[%emt 0:06:54]} 21. Rc2 {[%emt 0:00:17]} Ba4
{[%emt 0:00:34]} 22. Re2 {[%emt 0:01:21]} Rfc8 {[%emt 0:02:25]} 23. Bc2 {
[%emt 0:02:22]} Rxc2 {[%emt 0:05:30]} 24. Qxc2 {[%emt 0:00:50]} Rc8 {[%emt 0:
00:00]} 25. Qd3 {[%emt 0:02:35]} Bb5 {[%emt 0:00:18]} 26. Qd1 {[%emt 0:00:06]}
Bxe2 {[%emt 0:00:21]} 27. Nxe2 {[%emt 0:00:37]} Qc7 {[%emt 0:04:27]} 28. e5 {
[%emt 0:01:20]} Qc2 {[%emt 0:01:01]} 29. f4 {[%emt 0:00:43]} Be7 {[%emt 0:00:
00]} 30. Nc5 {[%emt 0:05:22]} Qxd1 {[%emt 0:00:29]} 31. Rxd1 {[%emt 0:00:08]}
Nxc5 {[%emt 0:00:14]} 32. dxc5 {[%emt 0:02:06]} Bxc5 {[%emt 0:00:16]} 33. Nd4 {
[%emt 0:00:46]} Nc6 {[%emt 0:02:41]} 34. Kf1 {[%emt 0:01:27]} Nxd4 {[%emt 0:00:
00]} 35. Bxd4 {[%emt 0:00:11]} Bxd4 {[%emt 0:00:50]} 36. Rxd4 {[%emt 0:00:07]}
Rc4 {[%emt 0:02:06]} 37. Rxc4 {[%emt 0:00:17]} dxc4 {[%emt 0:00:06]} 38. Ke2 {
[%emt 0:00:20]} f6 {[%emt 0:00:49]} 39. Ke3 {[%emt 0:02:13]} Kf7 {[%emt 0:00:
00]} 40. Kd4 {[%emt 0:01:07]} fxe5+ {[%emt 0:00:05]} 41. fxe5 {[%emt 0:30:24]}
c3 {[%emt 0:30:07]} 42. bxc3 {[%emt 0:00:25]} bxc3 {[%emt 0:00:30]} 43. Kxc3 {
[%emt 0:00:08]} Kg6 {[%emt 0:00:15]} 44. Kd3 {[%emt 0:01:01]} Kf5 {[%emt 0:00:
00]} 45. Kd4 {[%emt 0:00:22]} h5 {[%emt 0:00:00]} 46. g3 {[%emt 0:00:00]} g5 {
[%emt 0:00:00]} 47. h3 {[%emt 0:00:00]} g4 {[%emt 0:00:00]} 48. h4 {[%emt 0:00:
00]} Kg6 {[%emt 0:00:00]} 49. Kc5 {[%emt 0:00:00]} Kf5 {[%emt 0:00:00]} 50. Kd6
{[%emt 0:00:00]} Ke4 {[%emt 0:00:00]} 51. Kxe6 {[%emt 0:00:00]} Kf3 {[%emt 0:
00:00]} 52. Kf5 {[%emt 0:00:00]} Kxg3 {[%emt 0:00:00]} 53. e6 {[%emt 0:00:00]}
Kh2 {[%emt 0:00:00]} 54. e7 {[%emt 0:00:00]} g3 {[%emt 0:00:00]} 55. e8=Q {
[%emt 0:00:00]} g2 {[%emt 0:00:00]} 56. Qe2 {[%emt 0:00:00]} Kh1 {[%emt 0:00:
00]} 57. Qxg2+ {[%emt 0:00:00]} Kxg2 {[%emt 0:00:00]} 58. Kg5 {[%emt 0:00:00]}
Kf3 {[%emt 0:00:00]} 59. Kxh5 {[%emt 0:00:00]} Kf4 {[%emt 0:00:00]} 60. Kg6 {
[%emt 0:00:00]} 1-0

[Event "44th Chess Olympiad Open 2022"]
[Site "Chennai"]
[Date "2022.08.02"]
[Round "5.65"]
[White "Myat Thiri Aung Kyaw"]
[Black "Righi, Ezio"]
[Result "1-0"]
[WhiteElo "2120"]
[BlackElo "1912"]
[Annotator "NA RC"]
[PlyCount "69"]
[EventDate "2022.??.??"]
[TimeControl "60"]

1. e4 {[%emt 0:00:27]} c5 {[%emt 0:00:08]} 2. Nf3 {[%emt 0:00:04]} e6 {[%emt 0:
00:00]} 3. d4 {[%emt 0:01:06]} cxd4 {[%emt 0:00:12]} 4. Nxd4 {[%emt 0:00:06]}
a6 {[%emt 0:00:09]} 5. a4 {[%emt 0:01:17]} Nf6 {[%emt 0:00:42]} 6. Nc3 {
[%emt 0:01:14]} Qc7 {[%emt 0:00:31]} 7. Be2 {[%emt 0:01:18]} Bb4 {[%emt 0:00:
00]} 8. Bd2 {[%emt 0:02:11]} Bxc3 {[%emt 0:02:40]} 9. Bxc3 {[%emt 0:06:51]}
Nxe4 {[%emt 0:00:16]} 10. Bb4 {[%emt 0:03:21]} Qb6 {[%emt 0:02:49]} 11. c3 {
[%emt 0:06:37]} Nc6 {[%emt 0:05:27]} 12. a5 {[%emt 0:07:58]} Qc7 {[%emt 0:00:
00]} 13. Nxc6 {[%emt 0:00:21]} dxc6 {[%emt 0:03:42]} 14. Qd4 {[%emt 0:04:46]}
c5 {[%emt 0:00:53]} 15. Qxe4 {[%emt 0:01:25]} cxb4 {[%emt 0:00:07]} 16. Qxb4 {
[%emt 0:00:11]} Qe7 {[%emt 0:00:43]} 17. Qxe7+ {[%emt 0:11:54]} Kxe7 {[%emt 0:
00:00]} 18. Kd2 {[%emt 0:03:46]} Bd7 {[%emt 0:02:18]} 19. Ke3 {[%emt 0:04:55]}
Bc6 {[%emt 0:01:18]} 20. f3 {[%emt 0:02:15]} Rhd8 {[%emt 0:02:11]} 21. Rhd1 {
[%emt 0:00:16]} Rac8 {[%emt 0:00:27]} 22. c4 {[%emt 0:06:21]} e5 {[%emt 0:00:
00]} 23. b4 {[%emt 0:05:08]} f5 {[%emt 0:00:39]} 24. Rxd8 {[%emt 0:06:33]} Rxd8
{[%emt 0:01:14]} 25. Bd3 {[%emt 0:05:30]} f4+ {[%emt 0:04:29]} 26. Ke2 {
[%emt 0:00:24]} g5 {[%emt 0:03:07]} 27. b5 {[%emt 0:00:06]} axb5 {[%emt 0:00:
00]} 28. cxb5 {[%emt 0:00:02]} Bd5 {[%emt 0:00:13]} 29. a6 {[%emt 0:00:56]}
bxa6 {[%emt 0:00:57]} 30. bxa6 {[%emt 0:01:28]} h5 {[%emt 0:05:37]} 31. Ra5 {
[%emt 0:07:10]} Kf6 {[%emt 0:03:58]} 32. a7 {[%emt 0:00:08]} Bb7 {[%emt 0:00:
00]} 33. Rb5 {[%emt 0:01:14]} Ba8 {[%emt 0:03:01]} 34. Rb8 {[%emt 0:00:27]} Ke7
{[%emt 0:00:30]} 35. Be4 {[%emt 0:01:52]} 1-0

[Event "44th Chess Olympiad Open 2022"]
[Site "Chennai"]
[Date "2022.08.02"]
[Round "5.65"]
[White "Berardi, Giancarlo"]
[Black "Zaw Ye Htut"]
[Result "0-1"]
[WhiteElo "1757"]
[BlackElo "1255"]
[Annotator "NA"]
[PlyCount "74"]
[EventDate "2022.??.??"]
[TimeControl "60"]

1. c4 {[%emt 0:00:06]} e6 {[%emt 0:00:19]} 2. Nc3 {[%emt 0:00:19]} f5 {[%emt 0:
00:00]} 3. g3 {[%emt 0:02:46]} d5 {[%emt 0:00:40]} 4. cxd5 {[%emt 0:00:35]}
exd5 {[%emt 0:00:08]} 5. d4 {[%emt 0:00:57]} Nf6 {[%emt 0:00:14]} 6. Bg2 {
[%emt 0:00:58]} c6 {[%emt 0:00:10]} 7. Nf3 {[%emt 0:01:21]} Be7 {[%emt 0:00:09]
} 8. O-O {[%emt 0:04:01]} O-O {[%emt 0:00:08]} 9. Qc2 {[%emt 0:03:47]} Ne4 {
[%emt 0:00:25]} 10. Ne5 {[%emt 0:01:46]} Nd7 {[%emt 0:00:48]} 11. f3 {[%emt 0:
00:00]} Nxc3 {[%emt 0:02:02]} 12. bxc3 {[%emt 0:00:53]} Nxe5 {[%emt 0:00:20]}
13. dxe5 {[%emt 0:00:30]} Be6 {[%emt 0:00:30]} 14. f4 {[%emt 0:07:12]} Bc5+ {
[%emt 0:02:15]} 15. e3 {[%emt 0:01:07]} b5 {[%emt 0:00:20]} 16. a4 {[%emt 0:00:
00]} a6 {[%emt 0:02:19]} 17. Re1 {[%emt 0:01:10]} Qb6 {[%emt 0:02:09]} 18. Kh1
{[%emt 0:01:50]} h5 {[%emt 0:05:43]} 19. a5 {[%emt 0:00:49]} Qa7 {[%emt 0:00:
00]} 20. Ba3 {[%emt 0:03:58]} Rfc8 {[%emt 0:01:32]} 21. Qd3 {[%emt 0:02:30]}
Rab8 {[%emt 0:01:36]} 22. Bb4 {[%emt 0:00:27]} Kh8 {[%emt 0:03:20]} 23. Rac1 {
[%emt 0:01:21]} Qe7 {[%emt 0:00:25]} 24. Qd2 {[%emt 0:03:53]} Rb7 {[%emt 0:00:
00]} 25. Rc2 {[%emt 0:05:56]} Rbc7 {[%emt 0:02:17]} 26. Rec1 {[%emt 0:01:26]}
Bxb4 {[%emt 0:10:51]} 27. cxb4 {[%emt 0:00:30]} c5 {[%emt 0:00:30]} 28. Bxd5 {
[%emt 0:02:00]} Rd8 {[%emt 0:08:08]} 29. Rxc5 {[%emt 0:01:13]} Bxd5+ {[%emt 0:
00:00]} 30. Kg1 {[%emt 0:08:01]} Rxc5 {[%emt 0:00:39]} 31. bxc5 {[%emt 0:01:08]
} Bc4 {[%emt 0:00:45]} 32. Qb4 {[%emt 0:06:39]} Rd3 {[%emt 0:01:28]} 33. Rxc4 {
[%emt 0:02:00]} bxc4 {[%emt 0:00:32]} 34. Qxc4 {[%emt 0:00:20]} Rd1+ {[%emt 0:
00:00]} 35. Kg2 {[%emt 0:04:02]} Qb7+ {[%emt 0:09:09]} 36. c6 {[%emt 0:00:55]}
Qb5 {[%emt 0:00:16]} 37. Qe6 {[%emt 0:02:58]} Qf1# {[%emt 0:00:33]} 0-1

[Event "44th Chess Olympiad Open 2022"]
[Site "Chennai"]
[Date "2022.08.02"]
[Round "5.65"]
[White "Herrera, Adrian"]
[Black "Nay Lin Tun"]
[Result "0-1"]
[WhiteElo "1563"]
[BlackElo "2045"]
[Annotator "NA RC"]
[PlyCount "56"]
[EventDate "2022.??.??"]
[TimeControl "60"]

1. e4 {[%emt 0:00:08]} c5 {[%emt 0:00:35]} 2. Nf3 {[%emt 0:00:33]} d6 {[%emt 0:
00:00]} 3. Bb5+ {[%emt 0:01:28]} Nc6 {[%emt 0:02:30]} 4. d4 {[%emt 0:02:51]}
cxd4 {[%emt 0:01:42]} 5. Nxd4 {[%emt 0:01:47]} Bd7 {[%emt 0:00:52]} 6. Nxc6 {
[%emt 0:05:59]} bxc6 {[%emt 0:01:03]} 7. Bd3 {[%emt 0:02:19]} g6 {[%emt 0:00:
00]} 8. O-O {[%emt 0:01:31]} Bg7 {[%emt 0:01:26]} 9. Nc3 {[%emt 0:00:53]} Nf6 {
[%emt 0:02:37]} 10. Rb1 {[%emt 0:05:44]} O-O {[%emt 0:02:55]} 11. Re1 {[%emt 0:
00:00]} Rb8 {[%emt 0:09:18]} 12. b3 {[%emt 0:13:16]} Ng4 {[%emt 0:11:10]} 13.
Bb2 {[%emt 0:00:42]} Qb6 {[%emt 0:04:10]} 14. Qd2 {[%emt 0:00:48]} Qa5 {
[%emt 0:20:49]} 15. Re2 {[%emt 0:10:48]} Qe5 {[%emt 0:12:33]} 16. f4 {[%emt 0:
00:00]} Qh5 {[%emt 0:04:15]} 17. g3 {[%emt 0:11:58]} Bd4+ {[%emt 0:02:15]} 18.
Kh1 {[%emt 0:00:05]} Nf6 {[%emt 0:10:58]} 19. f5 {[%emt 0:02:15]} gxf5 {
[%emt 0:01:56]} 20. exf5 {[%emt 0:01:16]} c5 {[%emt 0:00:50]} 21. Ne4 {[%emt 0:
00:00]} Qf3+ {[%emt 0:00:59]} 22. Rg2 {[%emt 0:00:30]} Nxe4 {[%emt 0:00:50]}
23. Bxe4 {[%emt 0:00:24]} Qxe4 {[%emt 0:00:22]} 24. Bxd4 {[%emt 0:02:43]} Qxd4
{[%emt 0:00:21]} 25. Qg5+ {[%emt 0:02:17]} Qg7 {[%emt 0:00:22]} 26. Qxe7 {
[%emt 0:00:09]} Bc6 {[%emt 0:00:29]} 27. f6 {[%emt 0:00:07]} Qg6 {[%emt 0:00:
00]} 28. Re1 {[%emt 0:00:42]} Rfe8 {[%emt 0:00:18]} 0-1